bitfinex-derivatives/quotes_ETHF0:USTF0_20260117
["timestamp","ask_amount","ask_price","bid_price","bid_amount"]
[1768673281268,1.02424367,3318.6,3317.6,0.222922]
[1768673281472,1.12039275,3318.9,3317.6,0.222922]
[1768673281674,1.27892585,3318.8,3317.6,0.222922]
[1768673281972,1.02423674,3318.7,3317.6,0.222922]
[1768673282173,1.02423674,3318.6,3317.6,0.222922]
[1768673282381,1.12039275,3318.9,3317.6,0.222922]
[1768673282582,1.27891624,3318.8,3317.6,0.222922]
[1768673282783,1.678,3319.0,3318.2,0.96969275]
[1768673282984,1.02438337,3318.9,3318.2,0.96969275]
[1768673283176,1.678,3319.0,3318.2,0.96969275]
[1768673283376,1.678,3319.0,3318.0,0.96969275]
[1768673284771,1.02362874,3318.9,3318.0,0.96969275]
[1768673284977,1.02362874,3318.8,3318.0,0.96969275]
[1768673285178,1.678,3319.0,3318.0,0.96969275]
[1768673285475,1.02361373,3318.9,3318.0,0.96969275]
[1768673285674,1.02361373,3318.8,3318.0,0.96969275]
[1768673285875,1.678,3319.0,3318.0,0.96969275]
[1768673286074,1.02345692,3318.9,3318.0,0.96969275]
[1768673286274,1.02345692,3318.8,3318.0,0.96969275]
[1768673286574,1.678,3319.0,3318.0,0.96969275]
[1768673286774,1.02332278,3318.9,3318.0,0.96969275]
[1768673286980,1.02332278,3318.8,3318.0,0.96969275]
[1768673287285,1.678,3319.0,3318.0,0.96969275]
[1768673287474,1.02321334,3318.9,3318.0,0.96969275]
[1768673287674,1.678,3319.0,3318.0,0.96969275]
[1768673287874,1.02320794,3318.9,3318.0,0.96969275]
[1768673288077,1.678,3319.0,3318.0,0.96969275]
[1768673288276,1.02320801,3318.9,3318.0,0.96969275]
[1768673288476,1.678,3319.0,3318.0,0.96969275]
[1768673288771,1.02309498,3318.9,3318.0,0.96969275]
[1768673288976,1.678,3319.0,3318.0,0.96969275]
[1768673289177,1.02309503,3318.9,3318.0,0.96969275]
[1768673289381,1.678,3319.0,3318.0,0.96969275]
[1768673289581,1.02300185,3318.9,3318.0,0.96969275]
[1768673289781,1.678,3319.0,3318.0,0.96969275]
[1768673290082,1.02300183,3318.9,3318.0,0.96969275]
[1768673290383,0.75140866,3319.3,3318.2,0.96969275]
[1768673290588,2.7010092,3319.2,3318.2,0.96969275]
[1768673290787,1.0230092,3319.1,3318.2,0.96969275]
[1768673291284,1.678,3319.2,3318.2,0.96969275]
[1768673291583,1.678,3319.2,3318.4,0.96969275]
[1768673298597,0.002354,3319.3,3318.4,0.96969275]
[1768673299492,0.002354,3319.3,3318.6,0.96969275]
[1768673299697,0.002354,3319.3,3318.8,0.96969275]
[1768673299891,1.678,3319.8,3318.8,0.96969275]
[1768673300799,1.68095305,3319.8,3318.8,0.96969275]
[1768673305306,1.68095305,3319.8,3318.6,0.96969275]
[1768673309414,1.68095305,3319.8,3318.3,0.222922]
[1768673319509,1.02031016,3319.7,3318.3,0.222922]
[1768673319709,1.68095305,3319.8,3318.3,0.222922]
[1768673319910,1.02030927,3319.7,3318.3,0.222922]
[1768673320111,1.68095305,3319.8,3318.3,0.222922]
[1768673320313,1.27674757,3319.7,3318.3,0.222922]
[1768673320512,1.68095305,3319.8,3318.3,0.222922]
[1768673320711,1.0206254,3319.7,3318.3,0.222922]
[1768673320912,1.68095305,3319.8,3318.3,0.222922]
[1768673321212,1.27706568,3319.7,3318.3,0.222922]
[1768673321512,1.68095305,3319.8,3318.3,0.222922]
[1768673321715,1.27725898,3319.7,3318.3,0.222922]
[1768673321918,1.68095305,3319.8,3318.3,0.222922]
[1768673322221,1.27725963,3319.7,3318.3,0.222922]
[1768673322522,1.68095305,3319.8,3318.3,0.222922]
[1768673322703,1.27735522,3319.7,3318.3,0.222922]
[1768673322905,1.68095305,3319.8,3318.3,0.222922]
[1768673323108,1.27735524,3319.7,3318.3,0.222922]
[1768673323321,1.68095305,3319.8,3318.3,0.222922]
[1768673323627,1.27746785,3319.7,3318.3,0.222922]
[1768673323810,1.68095305,3319.8,3318.3,0.222922]
[1768673324010,1.27746785,3319.7,3318.3,0.222922]
[1768673324213,1.68095305,3319.8,3318.3,0.222922]
[1768673324413,1.27773389,3319.7,3318.3,0.222922]
[1768673324613,1.68095305,3319.8,3318.3,0.222922]
[1768673324924,1.27785427,3319.7,3318.3,0.222922]
[1768673325225,1.68095305,3319.8,3318.3,0.222922]
[1768673325410,1.27802455,3319.7,3318.3,0.222922]
[1768673325611,1.68095305,3319.8,3318.3,0.222922]
[1768673325813,1.27802476,3319.7,3318.3,0.222922]
[1768673326023,1.68095305,3319.8,3318.3,0.222922]
[1768673326324,1.2781893,3319.7,3318.3,0.222922]
[1768673326621,1.68095305,3319.8,3318.3,0.222922]
[1768673326922,1.02170752,3319.7,3318.3,0.222922]
[1768673327125,1.68095305,3319.8,3318.3,0.222922]
[1768673327424,1.02170645,3319.7,3318.3,0.222922]
[1768673327626,1.02170645,3319.6,3318.3,0.222922]
[1768673327828,1.68095305,3319.8,3318.3,0.222922]
[1768673328124,1.02151817,3319.7,3318.3,0.222922]
[1768673328320,1.02151817,3319.6,3318.3,0.222922]
[1768673328532,1.68095305,3319.8,3318.3,0.222922]
[1768673328823,1.02170213,3319.7,3318.3,0.222922]
[1768673329013,1.02170213,3319.6,3318.3,0.222922]
[1768673329279,1.68095305,3319.8,3318.3,0.222922]
[1768673329561,1.02189611,3319.7,3318.3,0.222922]
[1768673329725,1.02189611,3319.6,3318.3,0.222922]
[1768673329915,1.68095305,3319.8,3318.3,0.222922]
[1768673330117,1.02189611,3319.7,3318.3,0.222922]
[1768673330317,1.02189611,3319.6,3318.3,0.222922]
[1768673330530,1.68095305,3319.8,3318.3,0.222922]
[1768673330728,1.02188031,3319.7,3318.3,0.222922]
[1768673330928,1.02188031,3319.6,3318.3,0.222922]
[1768673331226,1.68095305,3319.8,3318.3,0.222922]
[1768673331423,1.02171105,3319.7,3318.3,0.222922]
[1768673331624,1.02171105,3319.6,3318.3,0.222922]
[1768673331824,1.68095305,3319.8,3318.3,0.222922]
[1768673332027,1.02170734,3319.7,3318.3,0.222922]
[1768673332226,1.02170734,3319.6,3318.3,0.222922]
[1768673332426,1.68095305,3319.8,3318.3,0.222922]
[1768673332616,1.02170438,3319.7,3318.3,0.222922]
[1768673332817,1.02170438,3319.6,3318.3,0.222922]
[1768673333013,1.68095305,3319.8,3318.3,0.222922]
[1768673333218,1.02170433,3319.7,3318.3,0.222922]
[1768673333519,1.02170433,3319.6,3318.3,0.222922]
[1768673333715,0.21439428,3319.7,3317.0,7.03061172]
[1768673333915,0.04972122,3318.6,3316.7,0.00271198]
[1768673334133,1.27823611,3318.5,3316.7,0.22111365]
[1768673334428,1.02147136,3318.4,3316.7,0.22111365]
[1768673334634,0.04972122,3318.6,3316.7,0.22111365]
[1768673334821,1.01845765,3318.5,3316.7,0.22111365]
[1768673335021,1.01845765,3318.4,3316.7,0.22111365]
[1768673335222,0.04972122,3318.6,3316.7,0.22111365]
[1768673335423,1.03013625,3318.5,3316.7,0.22111365]
[1768673335630,0.04972122,3318.6,3316.7,0.22111365]
[1768673335818,0.15071,3318.8,3316.8,0.21840167]
[1768673336022,3.64837772,3319.4,3317.2,0.21840167]
[1768673336223,1.03036629,3319.3,3317.2,0.21840167]
[1768673336436,1.03036629,3319.2,3317.2,0.21840167]
[1768673336725,1.03036629,3319.1,3317.2,0.21840167]
[1768673336923,0.96905804,3319.3,3317.2,0.21840167]
[1768673337133,1.0300808,3319.2,3317.2,0.21840167]
[1768673337335,1.0300808,3319.1,3317.2,0.21840167]
[1768673337523,0.96905804,3319.3,3317.2,0.21840167]
[1768673337726,1.02981536,3319.2,3317.2,0.21840167]
[1768673337927,1.02981536,3319.1,3317.2,0.21840167]
[1768673338129,0.96905804,3319.3,3317.2,0.21840167]
[1768673338428,1.02981598,3319.2,3317.2,0.21840167]
[1768673338737,1.02981598,3319.1,3317.2,0.21840167]
[1768673338930,0.96905804,3319.3,3317.2,0.21840167]
[1768673339234,1.02958929,3319.2,3317.2,0.21840167]
[1768673339438,0.96905804,3319.3,3317.2,0.21840167]
[1768673339632,1.02939528,3319.2,3317.2,0.21840167]
[1768673339933,0.96905804,3319.3,3317.2,0.21840167]
[1768673340124,1.02939464,3319.2,3317.2,0.21840167]
[1768673340325,0.96905804,3319.3,3317.2,0.21840167]
[1768673340525,1.02932884,3319.2,3317.2,0.21840167]
[1768673340717,0.96905804,3319.3,3317.2,0.21840167]
[1768673340922,1.02932873,3319.2,3317.2,0.21840167]
[1768673341121,0.96905804,3318.9,3317.2,0.21840167]
[1768673350949,0.15068,3319.3,3317.2,0.21840167]
[1768673352146,0.15068,3319.3,3317.5,0.21840167]
[1768673354745,4.694,3319.5,3317.5,0.21840167]
[1768673354746,0.06424912,3320.1,3317.5,0.21840167]
[1768673354951,2.70722676,3319.7,3317.5,0.21840167]
[1768673355147,1.02922676,3319.6,3317.5,0.21840167]
[1768673355450,1.02922676,3319.5,3317.5,0.21840167]
[1768673355649,1.678,3319.7,3317.5,0.21840167]
[1768673355949,1.02939123,3319.6,3317.5,0.21840167]
[1768673356148,1.02939123,3319.5,3317.5,0.21840167]
[1768673356451,1.678,3319.7,3317.5,0.21840167]
[1768673356646,1.02957479,3319.6,3317.5,0.21840167]
[1768673356848,1.02957479,3319.5,3317.5,0.21840167]
[1768673357049,1.678,3319.7,3317.5,0.21840167]
[1768673357249,1.02957426,3319.6,3317.5,0.21840167]
[1768673357547,1.678,3319.7,3317.5,0.21840167]
[1768673357548,1.02957426,3319.5,3317.5,0.21840167]
[1768673357748,1.678,3319.7,3317.5,0.21840167]
[1768673357950,1.0297724,3319.6,3317.5,0.21840167]
[1768673358141,1.678,3319.7,3317.5,0.21840167]
[1768673358142,1.0297724,3319.5,3317.5,0.21840167]
[1768673358341,1.678,3319.7,3317.5,0.21840167]
[1768673358548,1.03358204,3319.6,3317.5,0.21840167]
[1768673358849,1.03358204,3319.5,3317.5,0.21840167]
[1768673359065,1.678,3319.7,3317.5,0.21840167]
[1768673359441,1.03377604,3319.6,3317.5,0.21840167]
[1768673359641,1.03377604,3319.5,3317.5,0.21840167]
[1768673359843,1.03377604,3319.4,3317.5,0.21840167]
[1768673360042,1.678,3319.7,3317.5,0.21840167]
[1768673360247,1.29311511,3319.6,3317.5,0.21840167]
[1768673360542,1.03382269,3319.5,3317.5,0.21840167]
[1768673360738,1.03382269,3319.4,3317.5,0.21840167]
[1768673360941,1.678,3319.7,3317.5,0.21840167]
[1768673361142,1.29338139,3319.6,3317.5,0.21840167]
[1768673361448,1.03408905,3319.5,3317.5,0.21840167]
[1768673361653,1.03408905,3319.4,3317.5,0.21840167]
[1768673361953,1.678,3319.7,3317.5,0.21840167]
[1768673362154,1.29375434,3319.6,3317.5,0.21840167]
[1768673362456,1.03438708,3319.5,3317.5,0.21840167]
[1768673362649,1.03438708,3319.4,3317.5,0.21840167]
[1768673362851,1.03438708,3319.3,3317.5,0.21840167]
[1768673363050,1.678,3319.7,3317.5,0.21840167]
[1768673363251,1.29417731,3319.6,3317.5,0.21840167]
[1768673363450,1.29417731,3319.5,3317.5,0.21840167]
[1768673363654,1.03472512,3319.4,3317.5,0.21840167]
[1768673363852,1.03472512,3319.3,3317.5,0.21840167]
[1768673364055,1.678,3319.7,3317.5,0.21840167]
[1768673364355,1.29467035,3319.6,3317.5,0.21840167]
[1768673364556,1.29467035,3319.5,3317.5,0.21840167]
[1768673364761,1.03511909,3319.4,3317.5,0.21840167]
[1768673365056,1.03511909,3319.3,3317.5,0.21840167]
[1768673365245,1.678,3319.7,3317.5,0.21840167]
[1768673365446,1.29526876,3319.6,3317.5,0.21840167]
[1768673365645,1.29526876,3319.5,3317.5,0.21840167]
[1768673365854,1.03559899,3319.4,3317.5,0.21840167]
[1768673366054,1.03559899,3319.3,3317.5,0.21840167]
[1768673366257,1.678,3319.7,3317.5,0.21840167]
[1768673366458,1.29522168,3319.6,3317.5,0.21840167]
[1768673366658,1.29522168,3319.5,3317.5,0.21840167]
[1768673366852,1.03556132,3319.4,3317.5,0.21840167]
[1768673367057,1.03556132,3319.3,3317.5,0.21840167]
[1768673367359,1.678,3319.7,3317.5,0.21840167]
[1768673367550,1.29519352,3319.6,3317.5,0.21840167]
[1768673367752,1.29519352,3319.5,3317.5,0.21840167]
[1768673367954,1.0355389,3319.4,3317.5,0.21840167]
[1768673368152,1.0355389,3319.3,3317.5,0.21840167]
[1768673368353,1.678,3319.7,3317.5,0.21840167]
[1768673368557,1.29517893,3319.6,3317.5,0.21840167]
[1768673368761,1.29517893,3319.5,3317.5,0.21840167]
[1768673368963,1.03552726,3319.4,3317.5,0.21840167]
[1768673369260,1.03552726,3319.3,3317.5,0.21840167]
[1768673369562,1.678,3319.7,3317.5,0.21840167]
[1768673369751,1.29512554,3319.6,3317.5,0.21840167]
[1768673369956,1.03548389,3319.5,3317.5,0.21840167]
[1768673370248,1.03548389,3319.4,3317.5,0.21840167]
[1768673370453,1.03548389,3319.3,3317.5,0.21840167]
[1768673370662,1.678,3319.7,3317.5,0.21840167]
[1768673370862,1.29513232,3319.6,3317.5,0.21840167]
[1768673371054,1.0354894,3319.5,3317.5,0.21840167]
[1768673371254,1.0354894,3319.4,3317.5,0.21840167]
[1768673371457,2.00488852,3319.3,3318.0,0.22719028]
[1768673371662,0.96939912,3319.3,3318.0,0.22719028]
[1768673374963,1.03575834,3319.2,3318.2,0.24586228]
[1768673375157,0.96939912,3319.5,3318.2,0.24586228]
[1768673375358,1.03575834,3319.4,3318.2,0.24586228]
[1768673375654,1.03575834,3319.3,3318.2,0.24586228]
[1768673375854,1.03575834,3319.2,3318.2,0.24586228]
[1768673376060,0.96939912,3319.5,3318.2,0.24586228]
[1768673376259,1.03571399,3319.4,3318.2,0.24586228]
[1768673376462,1.03571399,3319.3,3318.2,0.24586228]
[1768673376664,1.03571399,3319.2,3318.2,0.24586228]
[1768673376868,0.96939912,3319.5,3318.2,0.24586228]
[1768673377069,1.0357581,3319.4,3318.2,0.24586228]
[1768673377266,1.0357581,3319.3,3318.2,0.24586228]
[1768673377563,1.0357581,3319.2,3318.2,0.24586228]
[1768673377764,0.96939912,3319.5,3318.2,0.24586228]
[1768673377964,1.03592598,3319.4,3318.2,0.24586228]
[1768673378165,1.03592598,3319.3,3318.2,0.24586228]
[1768673378363,1.03592598,3319.2,3318.2,0.24586228]
[1768673378563,0.96939912,3319.5,3318.2,0.24586228]
[1768673378766,1.03613988,3319.4,3318.2,0.24586228]
[1768673378967,1.03613988,3319.3,3318.2,0.24586228]
[1768673379264,1.03613988,3319.2,3318.2,0.24586228]
[1768673379462,1.03613988,3319.1,3318.2,0.24586228]
[1768673379767,0.96939912,3319.5,3318.2,0.24586228]
[1768673379969,1.03639046,3319.4,3318.2,0.24586228]
[1768673380267,1.03639046,3319.3,3318.2,0.24586228]
[1768673380466,1.03639046,3319.2,3318.2,0.24586228]
[1768673380668,1.03639046,3319.1,3318.2,0.24586228]
[1768673380869,0.96939912,3319.5,3318.2,0.24586228]
[1768673381167,1.03681029,3319.4,3318.2,0.24586228]
[1768673381364,1.03681029,3319.3,3318.2,0.24586228]
[1768673381568,1.03681029,3319.2,3318.2,0.24586228]
[1768673381759,1.03681029,3319.1,3318.2,0.24586228]
[1768673381959,0.96939912,3319.5,3318.2,0.24586228]
[1768673382158,1.03733087,3319.4,3318.2,0.24586228]
[1768673382359,1.03733087,3319.3,3318.2,0.24586228]
[1768673382664,1.03733087,3319.2,3318.2,0.24586228]
[1768673382866,1.03733087,3319.1,3318.2,0.24586228]
[1768673383058,0.96939912,3319.5,3318.2,0.24586228]
[1768673383259,1.03739203,3319.4,3318.2,0.24586228]
[1768673383460,1.03739203,3319.3,3318.2,0.24586228]
[1768673383660,1.03739203,3319.2,3318.2,0.24586228]
[1768673383968,1.03739203,3319.1,3318.2,0.24586228]
[1768673384170,0.96939912,3319.5,3318.2,0.24586228]
[1768673384370,1.29749435,3319.4,3318.2,0.24586228]
[1768673384570,1.03736107,3319.3,3318.2,0.24586228]
[1768673384869,0.96939912,3319.5,3318.2,0.24586228]
[1768673385070,1.29760608,3319.4,3318.2,0.24586228]
[1768673385270,1.0374728,3319.3,3318.2,0.24586228]
[1768673385471,0.96939912,3319.5,3318.2,0.24586228]
[1768673385770,1.29760067,3319.4,3318.2,0.24586228]
[1768673385965,1.03746831,3319.3,3318.2,0.24586228]
[1768673386268,0.96939912,3319.5,3318.2,0.24586228]
[1768673386572,1.03746755,3319.4,3318.2,0.24586228]
[1768673386770,0.96939912,3319.5,3318.2,0.24586228]
[1768673386771,1.03746755,3319.3,3318.2,0.24586228]
[1768673386966,0.96939912,3319.5,3318.2,0.24586228]
[1768673387167,1.03746745,3319.4,3318.2,0.24586228]
[1768673387466,1.03746745,3319.3,3318.2,0.24586228]
[1768673387666,0.96939912,3319.5,3318.2,0.24586228]
[1768673387868,1.03747125,3319.4,3318.2,0.24586228]
[1768673388065,1.03747125,3319.3,3318.2,0.24586228]
[1768673388266,0.96939912,3319.5,3318.2,0.24586228]
[1768673388465,1.0370323,3319.4,3318.2,0.24586228]
[1768673388665,1.0370323,3319.3,3318.2,0.24586228]
[1768673388858,1.678,3319.7,3318.2,0.24586228]
[1768673389071,1.0370323,3319.6,3318.5,0.96939912]
[1768673389271,0.96939912,3319.7,3318.4,0.24586228]
[1768673389462,1.03690029,3319.6,3318.4,0.24586228]
[1768673389663,0.96939912,3319.7,3318.4,0.24586228]
[1768673389863,1.0368999,3319.6,3318.4,0.24586228]
[1768673390069,0.96939912,3319.7,3318.4,0.24586228]
[1768673390270,1.03681219,3319.6,3318.4,0.24586228]
[1768673390571,0.96939912,3319.7,3318.4,0.24586228]
[1768673390771,1.03665312,3319.6,3318.4,0.24586228]
[1768673390972,0.96939912,3319.7,3318.4,0.24586228]
[1768673391164,1.03665309,3319.6,3318.4,0.24586228]
[1768673391364,0.96939912,3319.7,3318.4,0.24586228]
[1768673391574,1.03653316,3319.6,3318.4,0.24586228]
[1768673391775,0.96939912,3319.7,3318.4,0.24586228]
[1768673391965,1.03653203,3319.6,3318.4,0.24586228]
[1768673392166,0.96939912,3319.7,3318.4,0.24586228]
[1768673392366,1.03653207,3319.6,3318.4,0.24586228]
[1768673392573,0.96939912,3319.7,3318.4,0.24586228]
[1768673392775,1.03643845,3319.6,3318.4,0.24586228]
[1768673392970,0.96939912,3319.7,3318.4,0.24586228]
[1768673393170,1.03643976,3319.6,3318.4,0.24586228]
[1768673393371,0.96939912,3319.7,3318.4,0.24586228]
[1768673393574,1.03636412,3319.6,3318.4,0.24586228]
[1768673393775,0.96939912,3319.7,3318.4,0.24586228]
[1768673393970,1.03636419,3319.6,3318.4,0.24586228]
[1768673394174,0.96939912,3319.7,3318.4,0.24586228]
[1768673394378,1.03636329,3319.6,3318.4,0.24586228]
[1768673394671,0.96939912,3319.7,3318.4,0.24586228]
[1768673394969,1.03630507,3319.6,3318.4,0.24586228]
[1768673395170,0.96939912,3319.7,3318.4,0.24586228]
[1768673395372,1.03630554,3319.6,3318.4,0.24586228]
[1768673395571,0.96939912,3319.7,3318.4,0.24586228]
[1768673395772,1.03625609,3319.6,3318.4,0.24586228]
[1768673395971,0.96939912,3319.7,3318.4,0.24586228]
[1768673396171,1.03625613,3319.6,3318.4,0.24586228]
[1768673396370,0.96939912,3319.7,3318.4,0.24586228]
[1768673396573,1.03621794,3319.6,3318.4,0.24586228]
[1768673396775,0.96939912,3319.7,3318.4,0.24586228]
[1768673396975,1.03621802,3319.6,3318.4,0.24586228]
[1768673397176,0.96939912,3319.7,3318.4,0.24586228]
[1768673397377,1.03619045,3319.6,3318.4,0.24586228]
[1768673397569,0.96939912,3319.7,3318.4,0.24586228]
[1768673397770,1.03616383,3319.6,3318.4,0.24586228]
[1768673397971,0.96939912,3319.7,3318.4,0.24586228]
[1768673398272,1.03616392,3319.6,3318.4,0.24586228]
[1768673398571,0.96939912,3319.7,3318.4,0.24586228]
[1768673398772,1.03614835,3319.6,3318.4,0.24586228]
[1768673398980,0.96939912,3319.7,3318.4,0.24586228]
[1768673399176,1.03614839,3319.6,3318.4,0.24586228]
[1768673399378,0.96939912,3319.7,3318.4,0.24586228]
[1768673399577,1.03608969,3319.6,3318.4,0.24586228]
[1768673399772,0.96939912,3319.7,3318.4,0.24586228]
[1768673399973,1.03608696,3319.6,3318.4,0.24586228]
[1768673400167,0.96939912,3319.7,3318.4,0.24586228]
[1768673400367,1.03607592,3319.6,3318.4,0.24586228]
[1768673400581,0.96939912,3319.7,3318.4,0.24586228]
[1768673400781,1.03608697,3319.6,3318.4,0.24586228]
[1768673400981,0.96939912,3319.7,3318.4,0.24586228]
[1768673401177,1.03608579,3319.6,3318.4,0.24586228]
[1768673401376,0.96939912,3319.7,3318.4,0.24586228]
[1768673401579,1.03606635,3319.6,3318.4,0.24586228]
[1768673401771,0.96939912,3319.7,3318.4,0.24586228]
[1768673401970,1.03606531,3319.6,3318.4,0.24586228]
[1768673402171,0.96939912,3319.7,3318.4,0.24586228]
[1768673402370,1.0360575,3319.6,3318.4,0.24586228]
[1768673402571,0.96939912,3319.7,3318.4,0.24586228]
[1768673402775,1.0360697,3319.6,3318.4,0.24586228]
[1768673402978,0.96939912,3319.7,3318.4,0.24586228]
[1768673403177,1.03607146,3319.6,3318.4,0.24586228]
[1768673403477,0.96939912,3319.7,3318.4,0.24586228]
[1768673403679,1.03607148,3319.6,3318.4,0.24586228]
[1768673403976,0.96939912,3319.7,3318.4,0.24586228]
[1768673404167,1.03607134,3319.6,3318.4,0.24586228]
[1768673404372,0.96939912,3319.7,3318.4,0.24586228]
[1768673404568,1.03607456,3319.6,3318.4,0.24586228]
[1768673404775,0.96939912,3319.7,3318.4,0.24586228]
[1768673404982,1.03607467,3319.6,3318.4,0.24586228]
[1768673405174,0.96939912,3319.7,3318.4,0.24586228]
[1768673405373,1.03607715,3319.6,3318.4,0.24586228]
[1768673405584,0.96939912,3319.7,3318.4,0.24586228]
[1768673405773,1.03608549,3319.6,3318.4,0.24586228]
[1768673405974,0.96939912,3319.7,3318.4,0.24586228]
[1768673406182,1.03608563,3319.6,3318.4,0.24586228]
[1768673406482,0.96939912,3319.7,3318.4,0.24586228]
[1768673406784,1.03610466,3319.6,3318.4,0.24586228]
[1768673406981,0.96939912,3319.7,3318.4,0.24586228]
[1768673407176,1.03610656,3319.6,3318.4,0.24586228]
[1768673407379,0.96939912,3319.7,3318.4,0.24586228]
[1768673407569,1.03613273,3319.6,3318.4,0.24586228]
[1768673407777,0.96939912,3319.7,3318.4,0.24586228]
[1768673407976,1.03613275,3319.6,3318.4,0.24586228]
[1768673408177,0.96939912,3319.7,3318.4,0.24586228]
[1768673408379,1.03614162,3319.6,3318.4,0.24586228]
[1768673408678,0.96939912,3319.7,3318.4,0.24586228]
[1768673408879,1.03616702,3319.6,3318.4,0.24586228]
[1768673409178,0.96939912,3319.7,3318.4,0.24586228]
[1768673409374,1.03617537,3319.6,3318.4,0.24586228]
[1768673409576,0.96939912,3319.7,3318.4,0.24586228]
[1768673409777,1.03620706,3319.6,3318.4,0.24586228]
[1768673410076,0.96939912,3319.7,3318.4,0.24586228]
[1768673410374,1.0362071,3319.6,3318.4,0.24586228]
[1768673410575,0.96939912,3319.7,3318.4,0.24586228]
[1768673410771,1.0362591,3319.6,3318.4,0.24586228]
[1768673410973,0.96939912,3319.7,3318.4,0.24586228]
[1768673411173,1.03625898,3319.6,3318.4,0.24586228]
[1768673411387,0.96939912,3319.7,3318.4,0.24586228]
[1768673411583,1.03631257,3319.6,3318.4,0.24586228]
[1768673411784,1.83161305,3319.8,3318.4,0.24586228]
[1768673411984,2.26565981,3319.7,3318.4,0.24586228]
[1768673412188,1.0363125,3319.6,3318.4,0.24586228]
[1768673412498,0.96939912,3319.7,3318.4,0.24586228]
[1768673412689,1.03636937,3319.6,3318.4,0.24586228]
[1768673412989,0.96939912,3319.7,3318.4,0.24586228]
[1768673413187,1.03636923,3319.6,3318.4,0.24586228]
[1768673413395,0.96939912,3319.7,3318.4,0.24586228]
[1768673413589,1.03644015,3319.6,3318.4,0.24586228]
[1768673413886,0.96939912,3319.7,3318.4,0.24586228]
[1768673414086,1.03644196,3319.6,3318.4,0.24586228]
[1768673414288,0.96939912,3319.7,3318.4,0.24586228]
[1768673414489,1.03652561,3319.6,3318.4,0.24586228]
[1768673414690,0.96939912,3319.7,3318.4,0.24586228]
[1768673414886,1.03652551,3319.6,3318.4,0.24586228]
[1768673415090,0.96939912,3319.7,3318.4,0.24586228]
[1768673415392,1.03653788,3319.6,3318.4,0.24586228]
[1768673415593,0.96939912,3319.7,3318.4,0.24586228]
[1768673415793,1.03662859,3319.6,3318.4,0.24586228]
[1768673415979,0.96939912,3319.7,3318.4,0.24586228]
[1768673416181,1.03662902,3319.6,3318.4,0.24586228]
[1768673416381,1.03676257,3319.5,3318.4,0.24586228]
[1768673416582,0.96939912,3319.7,3318.4,0.24586228]
[1768673416890,1.68095305,3319.8,3318.6,0.25101305]
[1768673417076,1.68095305,3319.8,3318.7,0.96939912]
[1768673418294,1.68095305,3319.8,3318.6,0.25101305]
[1768673422098,2.65035217,3319.8,3318.6,0.25101305]
[1768673425092,1.68095305,3319.8,3318.6,0.25101305]
[1768673425499,0.00295305,3319.8,3318.6,0.25101305]
[1768673426799,0.00295305,3319.8,3318.7,1.20844566]
[1768673427804,0.00295305,3319.8,3318.8,0.23904654]
[1768673437410,6.0,3319.8,3318.4,0.15072]
[1768673437614,0.10511336,3320.6,3318.0,0.25310129]
[1768673437615,0.96897685,3319.7,3318.0,0.25310129]
[1768673437911,1.03504714,3319.6,3318.0,0.25310129]
[1768673438306,1.03504714,3319.6,3317.2,40.8]
[1768673438307,1.14028654,3319.6,3317.3,0.25310129]
[1768673438503,0.96897685,3319.3,3317.3,0.25310129]
[1768673439809,1.07421625,3319.5,3317.3,0.25310129]
[1768673440011,1.03476329,3319.4,3317.3,0.25310129]
[1768673440313,1.07421625,3319.5,3317.3,0.25310129]
[1768673440513,1.03459717,3319.4,3317.3,0.25310129]
[1768673440712,1.07421625,3319.5,3317.3,0.25310129]
[1768673441013,1.03459452,3319.4,3317.3,0.25310129]
[1768673441212,1.07421625,3319.5,3317.3,0.25310129]
[1768673442528,0.1052394,3319.5,3317.3,0.25310129]
[1768673443518,0.1052394,3319.5,3317.5,0.25310129]
[1768673447023,0.1052394,3319.5,3317.6,0.25310129]
[1768673447524,1.03364895,3319.4,3317.6,0.25310129]
[1768673447723,0.1052394,3319.5,3317.6,0.25310129]
[1768673447923,1.03364895,3319.4,3317.6,0.25310129]
[1768673448127,0.1052394,3319.5,3317.6,0.25310129]
[1768673453924,0.97166123,3319.6,3317.6,0.25310129]
[1768673454224,1.03306915,3319.5,3317.6,0.25310129]
[1768673454427,0.97166123,3319.6,3317.6,0.25310129]
[1768673454727,1.03306279,3319.5,3317.6,0.25310129]
[1768673454929,0.97166123,3319.6,3317.6,0.25310129]
[1768673455125,1.03306418,3319.5,3317.6,0.25310129]
[1768673455325,0.97166123,3319.6,3317.6,0.25310129]
[1768673455524,1.03307031,3319.5,3317.6,0.25310129]
[1768673455726,0.97166123,3319.6,3317.6,0.25310129]
[1768673455921,1.03307051,3319.5,3317.6,0.25310129]
[1768673456126,0.97166123,3319.6,3317.6,0.25310129]
[1768673456327,1.03309425,3319.5,3317.6,0.25310129]
[1768673456528,0.97166123,3319.6,3317.6,0.25310129]
[1768673456730,1.03309455,3319.5,3317.6,0.25310129]
[1768673456932,0.97166123,3319.6,3317.6,0.25310129]
[1768673457129,1.03309455,3319.5,3317.6,0.25310129]
[1768673457329,0.97166123,3319.6,3317.6,0.25310129]
[1768673457540,1.03313803,3319.5,3317.6,0.25310129]
[1768673457732,0.97166123,3319.6,3317.6,0.25310129]
[1768673457926,1.03313896,3319.5,3317.6,0.25310129]
[1768673458131,0.97166123,3319.6,3317.6,0.25310129]
[1768673458430,1.03319577,3319.5,3317.6,0.25310129]
[1768673458729,0.97166123,3319.6,3317.6,0.25310129]
[1768673459030,1.03319577,3319.5,3317.6,0.25310129]
[1768673459230,0.97166123,3319.6,3317.6,0.25310129]
[1768673459426,1.03326856,3319.5,3317.6,0.25310129]
[1768673459627,0.97166123,3319.6,3317.6,0.25310129]
[1768673459820,1.0332684,3319.5,3317.6,0.25310129]
[1768673460020,0.97166123,3319.6,3317.6,0.25310129]
[1768673460229,1.03326845,3319.5,3317.6,0.25310129]
[1768673460433,1.03326845,3319.4,3317.6,0.25310129]
[1768673460630,0.97166123,3319.6,3317.6,0.25310129]
[1768673460831,1.03332571,3319.5,3317.6,0.25310129]
[1768673461031,1.03332571,3319.4,3317.6,0.25310129]
[1768673461233,0.97166123,3319.6,3317.6,0.25310129]
[1768673461433,1.03343098,3319.5,3317.6,0.25310129]
[1768673461637,1.03343098,3319.4,3317.6,0.25310129]
[1768673461936,0.97166123,3319.6,3317.6,0.25310129]
[1768673462131,1.03343205,3319.5,3317.6,0.25310129]
[1768673462338,1.03343205,3319.4,3317.6,0.25310129]
[1768673462536,0.97166123,3319.6,3317.6,0.25310129]
[1768673462738,1.03355939,3319.5,3317.6,0.25310129]
[1768673462933,1.03355939,3319.4,3317.6,0.25310129]
[1768673463133,0.97166123,3319.6,3317.6,0.25310129]
[1768673463336,1.03370972,3319.5,3317.6,0.25310129]
[1768673463532,1.03370972,3319.4,3317.6,0.25310129]
[1768673463731,0.97166123,3319.6,3317.6,0.25310129]
[1768673464032,1.03370966,3319.5,3317.6,0.25310129]